fUSD/lending_fUSD_20241104
["ID","MTS","AMOUNT","RATE_DAILY","PERIOD"]
[341262258,1730735441594,-562.52676947,0.00035616,2]
[341262259,1730735441604,-500.0,0.00035616,2]
[341262260,1730735441615,-500.0,0.00035616,2]
[341262261,1730735441824,-500.0,0.00035616,2]
[341262262,1730735441835,-506.99175545,0.00035616,2]
[341262263,1730735441844,-652.97,0.00035616,2]
[341262264,1730735441854,-500.0,0.00035616,2]
[341262265,1730735441863,-500.0,0.00035616,2]
[341262266,1730735441873,-500.0,0.00035616,2]
[341262267,1730735441883,-689.03,0.00035616,2]
[341262268,1730735441893,-500.0,0.00035616,2]
[341262269,1730735441903,-551.04325131,0.00035616,2]
[341262270,1730735441914,-500.0,0.00035616,2]
[341262271,1730735441924,-500.0,0.00035616,2]
[341262272,1730735441934,-531.6216134,0.00035616,2]
[341262273,1730735441943,-777.65,0.00035616,2]
[341262274,1730735441954,-500.0,0.00035616,2]
[341262275,1730735441963,-500.0,0.00035616,2]
[341262276,1730735441972,-507.79917703,0.00035616,2]
[341262277,1730735441981,-500.0,0.00035616,2]
[341262278,1730735441991,-500.0,0.00035616,2]
[341262279,1730735442001,-500.0,0.00035616,2]
[341262280,1730735442010,-500.0,0.00035616,2]
[341262281,1730735442020,-550.90384402,0.00035616,2]
[341262282,1730735442030,-500.0,0.00035616,2]
[341262283,1730735442039,-1052.14,0.00035616,2]
[341262284,1730735442048,-500.0,0.00035616,2]
[341262285,1730735442058,-500.0,0.00035616,2]
[341262286,1730735442069,-500.0,0.00035616,2]
[341262287,1730735442079,-551.22763739,0.00035616,2]
[341262288,1730735442089,-173.30704547,0.00035616,2]
[341262289,1730735442101,-500.0,0.00035616,2]
[341262290,1730735442112,-609.2,0.00035616,2]
[341262291,1730735442122,-253.9113156,0.00035616,2]
[341262292,1730735442133,-514.86000379,0.00035616,2]
[341262293,1730735442152,-626.90999621,0.00035616,2]
[341262294,1730735442163,-522.45537885,0.00035616,2]
[341262295,1730735442172,-358.80020494,0.00035616,2]
[341262296,1730735442185,-400.67471929,0.00035616,2]
[341262297,1730735442198,-55.77507577,0.00035616,2]
[341262298,1730735442208,-558.43549014,0.00035616,2]
[341262299,1730735442218,-611.47,0.00035616,2]
[341262300,1730735442228,-534.70384736,0.00035616,2]
[341262301,1730735442237,-474.12605084,0.00035616,2]
[341262302,1730735442314,-25.87394916,0.00035616,2]
[341262303,1730735442324,-464.34605083,0.00035616,2]
[341262304,1730735442347,-783.14394917,0.00035616,2]
[341262305,1730735442359,-500.0,0.00035616,2]
[341262306,1730735442369,-500.0,0.00035616,2]
[341262307,1730735442381,-2000.0,0.00035616,2]
[341262308,1730735442391,-500.0,0.00035616,2]
[341262309,1730735442401,-232.67370471,0.00035616,2]
[341262310,1730735442412,-877.23,0.00035616,2]
[341262311,1730735442422,-1538.63,0.00035616,2]
[341262312,1730735442432,-500.0,0.00035616,2]
[341262313,1730735442443,-1051.45,0.00035616,2]
[341262314,1730735442454,-256.03015574,0.00035616,2]
[341262315,1730735442463,-552.54378536,0.00035616,2]
[341262316,1730735442474,-506.77546435,0.00035616,2]
[341262317,1730735442484,-500.0,0.00035616,2]
[341262318,1730735442495,-500.0,0.00035616,2]
[341262319,1730735442505,-500.0,0.00035616,2]
[341262320,1730735442514,-500.0,0.00035616,2]
[341262321,1730735442524,-743.85,0.00035616,2]
[341262322,1730735442536,-410.03764832,0.00035616,2]
[341262323,1730735442549,-333.81235168,0.00035616,2]
[341262324,1730735442558,-4150.77,0.00035616,2]
[341262325,1730735442569,-743.85,0.00035616,2]
[341262326,1730735442580,-160.0,0.00035616,2]
[341262327,1730735442589,-423.57734452,0.00035616,2]
[341262328,1730735442600,-320.27265548,0.00035616,2]
[341262329,1730735442610,-500.0,0.00035616,2]
[341262330,1730735442622,-743.85,0.00035616,2]
[341262331,1730735442632,-745.46,0.00035616,2]
[341262332,1730735442642,-743.85,0.00035616,2]
[341262333,1730735442654,-743.85,0.00035616,2]
[341262334,1730735442664,-743.85,0.00035616,2]
[341262335,1730735442673,-1876.8,0.00035616,2]
[341262336,1730735442682,-743.85,0.00035616,2]
[341262337,1730735442692,-286.95117496,0.00035616,2]
[341262338,1730735442705,-456.89882504,0.00035616,2]
[341262339,1730735442714,-209.92712719,0.00035616,2]
[341262340,1730735442723,-743.85,0.00035616,2]
[341262341,1730735442732,-548.1482827,0.00035616,2]
[341262342,1730735442742,-743.85,0.00035616,2]
[341262343,1730735442754,-743.85,0.00035616,2]
[341262344,1730735442763,-1151.0,0.00035616,2]
[341262345,1730735442774,-500.0,0.00035616,2]
[341262346,1730735442783,-1770.42,0.00035616,2]
[341262347,1730735442792,-498.69858557,0.00035616,2]
[341262348,1730735442802,-472.07394609,0.00035616,2]
[341262349,1730735442814,-27.92605391,0.00035616,2]
[341262350,1730735442824,-527.47984096,0.00035616,2]
[341262351,1730735442833,-245.8449178,0.00035616,2]
[341262352,1730735442845,-254.1550822,0.00035616,2]
[341262353,1730735442855,-510.09,0.00035616,2]
[341262354,1730735442864,-522.29,0.00035616,2]
[341262355,1730735442874,-958.22,0.00035616,2]
[341262356,1730735442883,-492.00991493,0.00035616,2]
[341262357,1730735442893,-500.0,0.00035616,2]
[341262358,1730735442902,-1255.75,0.00035616,120]
[341262359,1730735442912,-1127.16,0.00035616,2]
[341262360,1730735442922,-500.0,0.00035616,2]
[341262361,1730735442931,-500.0,0.00035616,2]
[341262362,1730735442940,-500.0,0.00035616,2]
[341262363,1730735442951,-865.69,0.00035616,2]
[341262364,1730735442961,-500.0,0.00035616,2]
[341262365,1730735442970,-500.0,0.00035616,2]
[341262366,1730735442980,-600.96759292,0.00035616,2]
[341262367,1730735442989,-500.0,0.00035616,2]
[341262368,1730735442999,-623.22859275,0.00035616,2]
[341262369,1730735443008,-500.0,0.00035616,2]
[341262370,1730735443018,-565.45450705,0.00035616,2]
[341262371,1730735443027,-500.0,0.00035616,2]
[341262372,1730735443037,-1128.13,0.00035616,2]
[341262373,1730735443047,-500.0,0.00035616,2]
[341262374,1730735443056,-500.0,0.00035616,2]
[341262375,1730735443066,-500.0,0.00035616,2]
[341262376,1730735443076,-511.48687532,0.00035616,2]
[341262377,1730735443085,-527.76449111,0.00035616,2]
[341262378,1730735443095,-1045.13,0.00035616,2]
[341262379,1730735443105,-500.0,0.00035616,2]
[341262380,1730735443114,-373.75987028,0.00035616,2]
[341262381,1730735443124,-500.0,0.00035616,2]
[341262383,1730735443134,-531.53,0.00035616,2]
[341262384,1730735443143,-500.0,0.00035616,2]
[341262386,1730735443153,-500.0,0.00035616,2]
[341262387,1730735443162,-500.0,0.00035616,2]
[341262388,1730735443172,-500.0,0.00035616,2]
[341262389,1730735443182,-500.0,0.00035616,2]
[341262390,1730735443195,-500.0,0.00035616,2]
[341262391,1730735443205,-500.0,0.00035616,2]
[341262392,1730735443215,-2026.72,0.00035616,2]
[341262393,1730735443224,-500.0,0.00035616,2]
[341262395,1730735443233,-1098.81,0.00035616,2]
[341262396,1730735443243,-250.0,0.00035616,2]
[341262397,1730735443254,-500.0,0.00035616,2]
[341262398,1730735443263,-500.0,0.00035616,2]
[341262400,1730735443273,-520.4,0.00035616,2]
[341262401,1730735443282,-500.0,0.00035616,2]
[341262402,1730735443292,-519.04,0.00035616,2]
[341262403,1730735443301,-500.0,0.00035616,2]
[341262404,1730735443311,-500.0,0.00035616,2]
[341262405,1730735443320,-500.0,0.00035616,2]
[341262406,1730735443331,-500.0,0.00035616,2]
[341262407,1730735443342,-500.0,0.00035616,2]
[341262408,1730735443352,-627.52,0.00035616,2]
[341262409,1730735443361,-500.0,0.00035616,2]
[341262410,1730735443373,-500.0,0.00035616,2]
[341262411,1730735443387,-416.52570666,0.00035616,2]
[341262412,1730735443398,-500.0,0.00035616,2]
[341262413,1730735443409,-587.36,0.00035616,2]
[341262414,1730735443419,-500.0,0.00035616,2]
[341262415,1730735443429,-494.8713891,0.00035616,2]
[341262416,1730735443465,-5.1286109,0.00035616,2]
[341262417,1730735443474,-337.68063298,0.00035616,2]
[341262418,1730735443487,-162.31936702,0.00035616,2]
[341262419,1730735443496,-500.0,0.00035616,2]
[341262420,1730735443506,-500.0,0.00035616,2]
[341262421,1730735443517,-251.80063298,0.00035616,2]
[341262422,1730735445687,-248.19936702,0.00035616,2]
[341262423,1730735445697,-500.0,0.00035616,2]
[341262424,1730735445708,-2121.93,0.00035616,2]
[341262425,1730735445717,-500.0,0.00035616,2]
[341262426,1730735445727,-500.0,0.00035616,2]
[341262427,1730735445737,-311.94344913,0.00035616,2]
[341262428,1730735445746,-500.0,0.00035616,2]
[341262429,1730735445756,-582.71,0.00035616,2]
[341262430,1730735445931,-1427.63,0.00035616,2]
[341262431,1730735445941,-500.0,0.00035616,2]
[341262432,1730735445950,-500.0,0.00035616,2]
[341262433,1730735445960,-500.0,0.00035616,2]
[341262434,1730735445968,-791.14,0.00035616,2]
[341262435,1730735445978,-500.0,0.00035616,2]
[341262436,1730735445988,-500.0,0.00035616,2]
[341262437,1730735445999,-500.0,0.00035616,2]
[341262438,1730735446008,-1116.56,0.00035616,2]
[341262439,1730735446019,-500.0,0.00035616,2]
[341262440,1730735446028,-182.95393399,0.00035616,2]
[341262442,1730735446037,-159.93675182,0.00035616,2]
[341262445,1730735446047,-495.65210998,0.00035616,2]
[341262448,1730735446057,-606.75193981,0.00035616,2]
[341262450,1730735446067,-508.88614504,0.00035616,2]
[341262452,1730735446076,-500.0,0.00035616,2]
[341262454,1730735446087,-500.0,0.00035616,2]
[341262456,1730735446097,-2018.13,0.00035616,2]
[341262458,1730735446107,-1093.28,0.00035616,2]
[341262460,1730735446117,-309.1908653,0.00035616,2]
[341262462,1730735446126,-500.0,0.00035616,2]
[341262464,1730735446136,-500.0,0.00035616,2]
[341262466,1730735446146,-500.0,0.00035616,2]
[341262468,1730735446155,-500.0,0.00035616,2]
[341262470,1730735446165,-500.0,0.00035616,2]
[341262472,1730735446175,-1104.45,0.00035616,2]
[341262474,1730735446185,-1687.58,0.00035616,2]
[341262476,1730735446194,-500.0,0.00035616,2]
[341262478,1730735446204,-500.0,0.00035616,2]
[341262479,1730735446214,-911.86,0.00035616,2]
[341262481,1730735446224,-509.43046459,0.00035616,2]
[341262483,1730735446234,-500.0,0.00035616,2]
[341262484,1730735446244,-500.0,0.00035616,2]
[341262485,1730735446254,-835.19,0.00035616,2]
[341262486,1730735446264,-500.0,0.00035616,2]
[341262487,1730735446274,-878.68,0.00035616,2]
[341262488,1730735446284,-500.0,0.00035616,2]
[341262489,1730735446294,-535.7091306,0.00035616,2]
[341262491,1730735446303,-559.22507054,0.00035616,2]
[341262492,1730735446313,-500.0,0.00035616,2]
[341262493,1730735446323,-500.0,0.00035616,2]
[341262494,1730735446332,-1098.84,0.00035616,2]
[341262495,1730735446342,-500.0,0.00035616,2]
[341262496,1730735446351,-505.08406607,0.00035616,2]
[341262497,1730735446361,-205.11609681,0.00035616,7]
[341262498,1730735446371,-500.0,0.00035616,2]
[341262499,1730735446382,-500.0,0.00035616,2]
[341262500,1730735446392,-1310.74,0.00035616,2]
[341262501,1730735446401,-500.0,0.00035616,2]
[341262502,1730735446411,-500.0,0.00035616,2]
[341262503,1730735446420,-2183.79,0.00035616,2]
[341262504,1730735446429,-500.0,0.00035616,2]
[341262505,1730735446438,-820.36,0.00035616,2]
[341262506,1730735446447,-500.0,0.00035616,2]
[341262507,1730735446457,-515.02,0.00035616,2]
[341262508,1730735446467,-500.0,0.00035616,2]
[341262509,1730735446476,-542.00375489,0.00035616,2]
[341262510,1730735446485,-500.0,0.00035616,2]
[341262511,1730735446495,-500.0,0.00035616,2]
[341262512,1730735446504,-512.07645613,0.00035616,2]
[341262513,1730735446514,-500.0,0.00035616,2]
[341262514,1730735446523,-500.0,0.00035616,2]
[341262515,1730735446532,-500.0,0.00035616,2]
[341262516,1730735446542,-570.11266064,0.00035616,2]
[341262517,1730735446551,-500.0,0.00035616,2]
[341262518,1730735446560,-500.0,0.00035616,2]
[341262519,1730735446569,-500.0,0.00035616,2]
[341262520,1730735446578,-535.79546455,0.00035616,2]
[341262521,1730735446588,-500.0,0.00035616,2]
[341262522,1730735446597,-500.0,0.00035616,2]
[341262523,1730735446606,-500.0,0.00035616,2]
[341262524,1730735446615,-500.0,0.00035616,2]
[341262525,1730735446624,-500.0,0.00035616,2]
[341262526,1730735446633,-500.0,0.00035616,2]
[341262527,1730735446643,-500.0,0.00035616,2]
[341262528,1730735446652,-500.0,0.00035616,2]
[341262529,1730735446661,-500.0,0.00035616,2]
[341262530,1730735446670,-1708.91,0.00035616,2]
[341262531,1730735446679,-500.0,0.00035616,2]
[341262532,1730735446688,-500.0,0.00035616,2]
[341262533,1730735446697,-544.98,0.00035616,2]
[341262534,1730735446707,-409.50565469,0.00035616,2]
[341262535,1730735446716,-511.89698941,0.00035616,2]
[341262536,1730735446726,-500.0,0.00035616,2]
[341262537,1730735446735,-500.0,0.00035616,2]
[341262538,1730735446745,-660.53,0.00035616,2]
[341262539,1730735446754,-500.0,0.00035616,2]
[341262540,1730735446763,-850.52,0.00035616,2]
[341262541,1730735446773,-564.44,0.00035616,2]
[341262542,1730735446782,-500.0,0.00035616,2]
[341262543,1730735446791,-500.0,0.00035616,2]
[341262544,1730735446800,-500.0,0.00035616,2]
[341262545,1730735446809,-560.28943259,0.00035616,2]
[341262546,1730735446819,-500.0,0.00035616,2]
[341262547,1730735446829,-752.59,0.00035616,2]
[341262548,1730735446839,-538.91492486,0.00035616,2]
[341262549,1730735446849,-500.0,0.00035616,2]
[341262550,1730735446858,-500.0,0.00035616,2]
[341262551,1730735446869,-500.0,0.00035616,2]
[341262553,1730735446879,-500.0,0.00035616,2]
[341262555,1730735446888,-500.0,0.00035616,2]
[341262557,1730735446898,-500.0,0.00035616,2]
[341262559,1730735446907,-500.0,0.00035616,2]
[341262561,1730735446917,-500.0,0.00035616,2]
[341262563,1730735446926,-1296.67,0.00035616,2]
[341262565,1730735446936,-500.0,0.00035616,2]
[341262567,1730735446945,-500.0,0.00035616,2]
[341262569,1730735446955,-268.2572324,0.00035616,2]
[341262571,1730735446965,-1584.46,0.00035616,2]
[341262573,1730735446974,-521.23213037,0.00035616,2]
[341262574,1730735446983,-500.0,0.00035616,2]
[341262576,1730735446994,-500.0,0.00035616,2]
[341262578,1730735447004,-535.24209533,0.00035616,2]
[341262580,1730735447013,-500.0,0.00035616,2]
[341262582,1730735447023,-1066.3,0.00035616,2]
[341262584,1730735447034,-1582.17,0.00035616,2]
[341262586,1730735447044,-500.0,0.00035616,2]
[341262588,1730735447054,-500.0,0.00035616,2]
[341262591,1730735447065,-500.0,0.00035616,2]
[341262593,1730735447075,-500.0,0.00035616,2]
[341262595,1730735447086,-500.0,0.00035616,2]
[341262597,1730735447096,-500.0,0.00035616,2]
[341262599,1730735447106,-520.56212513,0.00035616,2]
[341262601,1730735447116,-500.0,0.00035616,2]
[341262603,1730735447125,-500.0,0.00035616,2]
[341262605,1730735447134,-500.0,0.00035616,2]
[341262607,1730735447145,-500.0,0.00035616,2]
[341262609,1730735447154,-500.0,0.00035616,2]
[341262611,1730735447164,-500.0,0.00035616,2]
[341262613,1730735447175,-500.0,0.00035616,2]
[341262615,1730735447184,-1042.76,0.00035616,2]
[341262617,1730735447195,-500.0,0.00035616,2]
[341262619,1730735447205,-1058.38,0.00035616,2]
[341262621,1730735447215,-500.0,0.00035616,2]
[341262623,1730735447224,-200.0,0.00035616,2]
[341262625,1730735447235,-505.09,0.00035616,2]
[341262627,1730735447245,-511.69313922,0.00035616,2]
[341262629,1730735447256,-913.46,0.00035616,2]
[341262631,1730735447265,-500.0,0.00035616,2]
[341262632,1730735447276,-529.95868618,0.00035616,2]
[341262633,1730735447287,-500.0,0.00035616,2]
[341262634,1730735447297,-500.0,0.00035616,2]
[341262635,1730735447307,-2146.82,0.00035616,2]
[341262636,1730735447319,-381.62191018,0.00035616,2]
[341262637,1730735447329,-766.26,0.00035616,2]
[341262638,1730735447338,-500.0,0.00035616,2]
[341262639,1730735447347,-500.0,0.00035616,2]
[341262640,1730735447356,-500.0,0.00035616,2]
[341262641,1730735447366,-1191.45,0.00035616,2]
[341262643,1730735447375,-500.0,0.00035616,2]
[341262645,1730735447387,-500.0,0.00035616,2]
[341262647,1730735447396,-500.0,0.00035616,2]
[341262649,1730735447405,-500.0,0.00035616,2]
[341262651,1730735447414,-526.76290879,0.00035616,2]
[341262653,1730735447423,-500.0,0.00035616,2]
[341262655,1730735447434,-609.71,0.00035616,2]
[341262657,1730735447443,-938.94,0.00035616,2]
[341262659,1730735447454,-500.0,0.00035616,2]
[341262661,1730735447463,-500.0,0.00035616,2]
[341262663,1730735447472,-734.64,0.00035616,2]
[341262665,1730735447481,-500.0,0.00035616,2]
[341262667,1730735447491,-500.0,0.00035616,2]
[341262669,1730735447501,-500.0,0.00035616,2]
[341262671,1730735447512,-274.70219999,0.00035616,2]
[341262673,1730735447521,-500.0,0.00035616,2]
[341262675,1730735447531,-300.0,0.00035616,2]
[341262677,1730735447540,-500.0,0.00035616,2]
[341262679,1730735447550,-500.0,0.00035616,2]
[341262681,1730735447559,-500.0,0.00035616,2]
[341262683,1730735447569,-500.0,0.00035616,2]
[341262685,1730735447581,-530.41,0.00035616,2]
[341262687,1730735447590,-500.0,0.00035616,2]
[341262689,1730735447599,-500.0,0.00035616,2]
[341262691,1730735447609,-349.06767448,0.00035616,2]
[341262693,1730735447619,-500.0,0.00035616,2]
[341262696,1730735447629,-500.0,0.00035616,2]
[341262698,1730735447639,-1127.04,0.00035616,2]
[341262700,1730735447649,-500.0,0.00035616,2]
[341262702,1730735447659,-654.01,0.00035616,2]
[341262704,1730735447670,-500.0,0.00035616,2]
[341262706,1730735447680,-500.0,0.00035616,2]
[341262708,1730735447691,-500.0,0.00035616,2]
[341262710,1730735447701,-500.0,0.00035616,2]
[341262712,1730735447712,-500.0,0.00035616,2]
[341262714,1730735447722,-3340.62,0.00035616,2]
[341262716,1730735447732,-531.58028465,0.00035616,2]
[341262718,1730735447741,-500.0,0.00035616,2]
[341262720,1730735447751,-500.0,0.00035616,2]
[341262722,1730735447761,-500.0,0.00035616,2]
[341262724,1730735447770,-500.0,0.00035616,2]
[341262726,1730735447780,-10593.24,0.00035616,2]
[341262728,1730735447789,-735.14,0.00035616,2]
[341262731,1730735447808,-500.0,0.00035616,2]
[341262733,1730735447818,-500.0,0.00035616,2]
[341262735,1730735447828,-500.0,0.00035616,2]
[341262738,1730735447839,-509.40068614,0.00035616,2]
[341262739,1730735447849,-500.0,0.00035616,2]
[341262742,1730735447859,-500.0,0.00035616,2]
[341262743,1730735447868,-500.0,0.00035616,2]
[341262745,1730735447878,-528.03,0.00035616,2]
[341262747,1730735447887,-1246.62,0.00035616,2]
[341262750,1730735447897,-3005.2,0.00035616,2]
[341262752,1730735447906,-500.0,0.00035616,2]
[341262754,1730735447916,-500.0,0.00035616,2]
[341262756,1730735447926,-500.0,0.00035616,2]
[341262758,1730735447935,-558.26,0.00035616,2]
[341262760,1730735447945,-500.0,0.00035616,2]
[341262761,1730735447955,-500.0,0.00035616,2]
[341262764,1730735447965,-656.86,0.00035616,2]
[341262765,1730735447974,-547.78972043,0.00035616,2]
[341262767,1730735447984,-500.0,0.00035616,2]
[341262769,1730735447993,-1000.0,0.00035616,2]
[341262771,1730735448003,-625.73,0.00035616,2]
[341262773,1730735448013,-2616.04,0.00035616,2]
[341262775,1730735448022,-500.0,0.00035616,2]
[341262777,1730735448032,-500.0,0.00035616,2]
[341262779,1730735448042,-3461.86,0.00035616,2]
[341262782,1730735448052,-500.0,0.00035616,2]
[341262784,1730735448061,-500.0,0.00035616,2]
[341262786,1730735448071,-500.0,0.00035616,2]
[341262787,1730735448080,-1222.7,0.00035616,2]
[341262790,1730735448090,-514.78,0.00035616,2]
[341262791,1730735448099,-500.0,0.00035616,2]
[341262793,1730735448109,-165.46510753,0.00035616,2]
[341262795,1730735448118,-500.0,0.00035616,2]
[341262797,1730735448128,-500.0,0.00035616,2]
[341262799,1730735448138,-500.0,0.00035616,2]
[341262801,1730735448147,-500.0,0.00035616,2]
[341262803,1730735448157,-500.0,0.00035616,2]
[341262805,1730735448167,-954.74,0.00035616,2]
[341262807,1730735448176,-692.32,0.00035616,2]
[341262809,1730735448186,-535.74024501,0.00035616,2]
[341262811,1730735448195,-500.0,0.00035616,2]
[341262813,1730735448207,-500.0,0.00035616,2]
[341262815,1730735448216,-500.0,0.00035616,2]
[341262817,1730735448226,-596.33,0.00035616,2]
[341262819,1730735448236,-521.65,0.00035616,2]
[341262821,1730735448248,-500.0,0.00035616,2]
[341262823,1730735448257,-500.0,0.00035616,2]
[341262842,1730735448435,-500.0,0.00035616,2]
[341262844,1730735448444,-500.0,0.00035616,2]
[341262846,1730735448454,-500.0,0.00035616,2]
[341262848,1730735448464,-1916.99,0.00035616,2]
[341262850,1730735448474,-500.0,0.00035616,2]
[341262852,1730735448483,-567.41208167,0.00035616,2]
[341262854,1730735448492,-500.0,0.00035616,2]
[341262856,1730735448502,-500.0,0.00035616,2]
[341262858,1730735448511,-500.0,0.00035616,2]
[341262860,1730735448521,-500.0,0.00035616,2]
[341262862,1730735448530,-499.04092897,0.00035673,5]
[341262864,1730735448539,-159.90722755,0.00035673,5]
[341262866,1730735448549,-1000.0,0.00035699,2]
[341262868,1730735448559,-150.99586821,0.0003571,2]
[341262870,1730735448568,-151.76342527,0.0003575,2]
[341262872,1730735448578,-233.44439235,0.0003588,2]
[341262874,1730735448587,-879.46,0.00035888,2]
[341262876,1730735448596,-743.85,0.00035888,2]
[341262878,1730735448606,-300.0,0.00035889,10]
[341262880,1730735448615,-306.90430535,0.00035889,10]
[341262882,1730735448625,-200.0,0.00035889,2]
[341262884,1730735448634,-500.0,0.00035889,2]
[341262886,1730735448643,-500.0,0.00035889,2]
[341262888,1730735448653,-500.0,0.00035889,2]
[341262890,1730735448663,-519.87,0.00035889,2]
[341262892,1730735448672,-500.0,0.00035889,2]
[341262894,1730735448681,-514.30929044,0.00035889,2]
[341262896,1730735448690,-500.0,0.00035889,2]
[341262898,1730735448700,-509.2452202,0.00035889,2]
[341262900,1730735448709,-507.63986117,0.00035889,2]
[341262901,1730735448719,-500.0,0.00035889,2]
[341262903,1730735448728,-543.91542841,0.00035889,2]
[341262905,1730735448737,-538.46850483,0.00035889,2]
[341262907,1730735448747,-550.62387705,0.00035889,2]
[341262909,1730735448756,-500.0,0.00035889,2]
[341262911,1730735448766,-520.72900424,0.00035889,2]
[341262913,1730735448775,-617.07045395,0.00035889,2]
[341262914,1730735448785,-538.25756116,0.00035889,2]
[341262916,1730735448795,-500.0,0.00035889,2]
[341262917,1730735448805,-166.97564917,0.00035889,2]
[341262919,1730735448814,-500.0,0.00035889,2]
[341262921,1730735448824,-500.0,0.00035889,2]
[341262923,1730735448834,-500.0,0.00035889,2]
[341262925,1730735448844,-500.0,0.00035889,2]
[341262927,1730735448853,-191.2999364,0.00035889,2]
[341262929,1730735448863,-500.0,0.00035889,2]
[341262931,1730735448872,-440.37906942,0.00035889,2]
[341262934,1730735448884,-500.0,0.00035889,2]
[341262935,1730735448893,-500.0,0.00035889,2]
[341262937,1730735448903,-500.0,0.00035889,2]
[341262939,1730735448912,-500.0,0.00035889,2]
[341262941,1730735448922,-500.0,0.00035889,2]
[341262943,1730735448932,-500.0,0.00035889,2]
[341262946,1730735448942,-428.36907733,0.00035889,2]
[341262947,1730735448953,-500.0,0.00035889,2]
[341262949,1730735448964,-500.0,0.00035889,2]
[341262951,1730735448974,-500.0,0.00035889,2]
[341262954,1730735448984,-500.0,0.00035889,2]
[341262956,1730735448994,-500.0,0.00035889,2]
[341262957,1730735449004,-500.0,0.00035889,2]
[341262959,1730735449013,-541.83823747,0.00035889,2]
[341262961,1730735449023,-500.0,0.00035889,2]
[341262963,1730735449032,-500.0,0.00035889,2]
[341262965,1730735449041,-500.0,0.00035889,2]
[341262967,1730735449051,-500.0,0.00035889,2]
[341262969,1730735449060,-500.0,0.00035889,2]
[341262970,1730735449070,-500.0,0.00035889,2]
[341262971,1730735449080,-500.0,0.00035889,2]
[341262972,1730735449089,-500.0,0.00035889,2]
[341262973,1730735449098,-500.0,0.00035889,2]
[341262974,1730735449108,-500.0,0.00035889,2]
[341262975,1730735449117,-500.0,0.00035889,2]
[341262976,1730735449126,-500.0,0.00035889,2]
[341262977,1730735449135,-500.0,0.00035889,2]
[341262978,1730735449145,-500.0,0.00035889,2]
[341262979,1730735449154,-500.0,0.00035889,2]
[341262980,1730735449164,-500.0,0.00035889,2]
[341262981,1730735449173,-500.0,0.00035889,2]
[341262982,1730735449183,-500.0,0.00035889,2]
[341262983,1730735449192,-500.0,0.00035889,2]
[341262984,1730735449202,-500.0,0.00035889,2]
[341262985,1730735449211,-500.0,0.00035889,2]
[341262986,1730735449220,-500.0,0.00035889,2]
[341262987,1730735449230,-520.94,0.00035889,2]
[341262988,1730735449239,-500.0,0.00035889,2]
[341262989,1730735449248,-879.46,0.00035889,2]
[341262990,1730735449258,-500.0,0.00035889,2]
[341262991,1730735449267,-500.0,0.00035889,2]
[341262992,1730735449276,-500.0,0.00035889,2]
[341262993,1730735449286,-500.0,0.00035889,2]
[341262994,1730735449295,-548.0090972,0.00035889,2]
[341262995,1730735449304,-150.0,0.00035889,2]
[341262996,1730735449314,-500.0,0.00035889,2]